{"text_format":"1","workbook":"xlsx","n_sheets":3,"sheets":["Feuil1","Feuil2","Feuil3"],"not_rendered":{"charts":0,"images":0,"macros":0,"external_links":0,"defined_names":0,"comments":0,"pivot_tables":0},"unopened":[],"bounds":{"document_bytes":16777216,"sheet_cells":100000,"rows_first":2000,"rows_last":500,"rows_between":2000,"halvings":0,"cell_chars":16384,"cell_head_chars":4096},"cells_cut":0,"cells_raw":0,"read":"whole","date_system":"1900"}

{"sheet":"Feuil1","index":0,"n_rows":240,"n_cols":23,"rows_kept":240,"cut":false,"hidden":false,"merged":[[0,19,0,22]]}
[null,"N° fiche","Réf. Basses-Alpes","Nom","Prénoms","Profession","Date de naissance","Commune de naissance","Département de naissance","Département du domicile","Commune du domicile","Rue-lieu-dit du domicile","Qualité dans la Résistance","Décès","Date du décès","Date du décès","Commune du décès","Département du décès","Observations","Date de naissance"]
[1,1276,123,"BATTIT","Georges",null,null,null,null,"Basses-Alpes (Alpes-de-Haute-Provence)","Oraison",null,"FFI","Disparu"]
[2,14463,"80 bis","MAGNAN","Kruger Marceau",null,"1904-05-19","Mirabeau ","Basses-Alpes (Alpes-de-Haute-Provence)","Basses-Alpes (Alpes-de-Haute-Provence)","Valensole",null,"FTP","Tué","1944-06-17","1944-06-17","Valensole","Basses-Alpes (Alpes-de-Haute-Provence)","Tué au combat. Inhumé au cimetière de Valensole","1904-05-19",{"$f":"YEAR(T3)","v":1904},{"$f":"MONTH(T3)","v":5},{"$f":"DAY(T3)","v":19}]
[3,13362,"77 bis","LEGUEN","Francis",null,"1906-05-25","Mesquer","Loire-Inférieure (Loire-Atlantique)","Bouches-du-Rhône","Marseille",null,"FTP","Tué","1944-06-11","1944-06-11","Valensole","Basses-Alpes (Alpes-de-Haute-Provence)","Tué au combat. Combat du quartier des Tanches","1906-05-25",{"$f":"YEAR(T4)","v":1906},{"$f":"MONTH(T4)","v":5},{"$f":"DAY(T4)","v":25}]
[4,12557,124,"LATIL","Paul",null,null,null,null,"Basses-Alpes (Alpes-de-Haute-Provence)","Noyers-sur-Jabron",null,null,"Tué",null,null,null,null,"Tué lors de son internement"]
[5,9316,61,"GILLY","Marien Vincent Aimé","Scieur de bois","1912-05-09","Méolans (Méolans-Revel)","Basses-Alpes (Alpes-de-Haute-Provence)","Basses-Alpes (Alpes-de-Haute-Provence)","Digne (Digne-les-Bains)",null,null,"Fusillé","1944-06-11","1944-06-11","Barrême","Basses-Alpes (Alpes-de-Haute-Provence)","Inhumé au cimetière de Barrême","1912-05-09",1912,5,9]
[6,14105,53,"LIEUTAUD","Marius",null,"1911-03-13",null,null,"Bouches-du-Rhône","La Ciotat","13 rue Ledru-Rollin",null,"Tué","1944-04-05","1944-04-05","Châteauredon","Basses-Alpes (Alpes-de-Haute-Provence)","Tué au combat. Fiche n° 53 des Bouches-du-Rhône","1911-03-13",1911,3,13]
[7,12555,124,"LATIL","Albert",null,null,null,null,"Basses-Alpes (Alpes-de-Haute-Provence)","Valbelle",null,"FFI","Décédé"]
[8,12575,76,"LAUGIER","Alisée",null,"1920-12-10","Seyne","Basses-Alpes (Alpes-de-Haute-Provence)","Basses-Alpes (Alpes-de-Haute-Provence)","Espinouse (Le Chaffaut-Saint-Jurson)",null,"FTP","Fusillé","1944-06-11","1944-06-11","Mézel","Basses-Alpes (Alpes-de-Haute-Provence)","Pris au cours d'une mission et fusillé sur le champ","1920-12-10",1920,12,10]
[9,14464,"80 bis","MAGNAN","Maxime André",null,"1917-01-15","Barras","Basses-Alpes (Alpes-de-Haute-Provence)","Basses-Alpes (Alpes-de-Haute-Provence)","Valensole",null,"FTP","Tué","1944-06-17","1944-06-17","Valensole","Basses-Alpes (Alpes-de-Haute-Provence)","Tué lors d'une mission ; Appartenait au camp de Valensole ; Inhumé au cimetière de Valensole","1917-01-15",1917,1,15]
[10,14457,79,"MAGHAKIAN","Jean",null,"1926-12-04","Marseille","Bouches-du-Rhône","Var","Brignoles",null,null,"Fusillé","1944-06-16","1944-06-16","Saint-Martin-de-Brômes","Basses-Alpes (Alpes-de-Haute-Provence)","Fait prisonnier sur la route d'Allemagne à Riez","1926-12-04",1926,12,4]
[11,298,"4 bis","AMIELH","Berthin Léopold",null,"1874-09-05","Puimoisson","Basses-Alpes (Alpes-de-Haute-Provence)","Basses-Alpes (Alpes-de-Haute-Provence)","Bras-d'Asse",null,null,"Tué","1944-06-16","1944-06-16","Bégude (La) (Bras-d'Asse)","Basses-Alpes (Alpes-de-Haute-Provence)","Tué lors d'une opération allemande","05/09/1874",{"$f":"MID(T12,7,4)","v":"1874"},{"$f":"MID(T12,4,2)","v":"09"},{"$f":"MID(T12,1,2)","v":"05"}]
[12,14800,82,"MARES","Max Baptiste","Cultivateur","1926-01-12","Carcès","Var","Var","Carcès",null,"FTP","Fusillé","1944-06-16","1944-06-16","Saint-Martin-de-Brômes","Basses-Alpes (Alpes-de-Haute-Provence)","Fait prisonnier sur la route d'Allemagne à Riez","1926-01-12",1926,1,12]
[13,8841,55,"GARCIN","Clermont","Maçon","1910-03-10","Thoard","Basses-Alpes (Alpes-de-Haute-Provence)","Basses-Alpes (Alpes-de-Haute-Provence)","Thoard",null,"Résistant ","Tué","1944-07-01","1944-07-01","Thoard","Basses-Alpes (Alpes-de-Haute-Provence)","Tué alors qu'il prenait la fuite dans la montagne ; Inhumé au cimetière de Thoard","1910-03-10",1910,3,10]
[14,17619,96,"PUSTEL","Camille","Cultivateur","1920-01-20","Bayons","Basses-Alpes (Alpes-de-Haute-Provence)","Basses-Alpes (Alpes-de-Haute-Provence)","Bayons",null,null,"Exécuté","1944-07-26","1944-07-26","Bayons ","Basses-Alpes (Alpes-de-Haute-Provence)","Exécuté par la milice Waffen SS. Inhumé à Bayons ; ne faisait pas partie de la résistance","1920-01-20",1920,1,20]
[15,18726,105,"ROUIT","Bienvenu Auguste","Cultivateur","1913-04-21","Senez","Basses-Alpes (Alpes-de-Haute-Provence)","Basses-Alpes (Alpes-de-Haute-Provence)",null,null,null,"Fusillé","1944-07-20","1944-07-20",null,null,"Fusillé sans motif connu","1913-04-21",1913,4,21]
[16,17851,123,"RAPINET","Charles",null,null,"Digne (Digne-les-Bains)","Basses-Alpes (Alpes-de-Haute-Provence)","Basses-Alpes (Alpes-de-Haute-Provence)",null,null,"FFI","Mort des suites de ses blessures",null,null,null,null,null,null,1900,1,0]
[17,17904,null,"RAYBAUD","Hubert",null,"1925-04-04","Ascros","Alpes-Maritimes","Alpes-Maritimes","Ascros",null,"FTP","Tué","1944-08-11","1944-08-11","Montpezat (Montagnac-Montpezat)","Basses-Alpes (Alpes-de-Haute-Provence)","Tué par les Allemands  au cours de l'attaque du camp de Sainte-Croix. Inhumé à Riez","1925-04-04",1925,4,4]
[18,17892,122,"RAVEL",null,null,null,null,null,null,null,null,"FFI","Tué",null,null,null,null,null,null,1900,1,0]
[19,15664,85,"MEYRAN ","Émile Albert","Brigadier des douanes","1877-02-08","Meyronnes","Basses-Alpes (Alpes-de-Haute-Provence)","Basses-Alpes (Alpes-de-Haute-Provence)","Condamine (La) (La Condamine-Châtelard)",null,null,"Fusillé","1944-06-16","1944-06-16","Condamine (La) (La Condamine-Châtelard)","Basses-Alpes (Alpes-de-Haute-Provence)","Fusillé sur place. Inhumé à  La Condamine","08/02/1877",{"$f":"MID(T20,7,4)","v":"1877"},{"$f":"MID(T20,4,2)","v":"02"},{"$f":"MID(T20,1,2)","v":"08"}]
[20,16400,null,"MOYNIER","Étienne ",null,"1900-12-26","Champtercier","Basses-Alpes (Alpes-de-Haute-Provence)","Basses-Alpes (Alpes-de-Haute-Provence)","Mallemoisson",null,null,"Tué","1944-06-17","1944-06-17",null,null,"Tué au combat. Inhumé à Mallemoisson","1900-12-26",1900,12,26]
[21,15259,null,"MAUREL","Émile",null,"1907-11-23","Valensole","Basses-Alpes (Alpes-de-Haute-Provence)","Basses-Alpes (Alpes-de-Haute-Provence)","Valensole",null,"AS","Tué","1944-06-11","1944-06-11","Valensole","Basses-Alpes (Alpes-de-Haute-Provence)","Tué alors qu'il tentait de fuir. Inhumé à Valensole","1907-11-23",1907,11,23]
[22,11063,68,"IMBERT","François Antoine","Douanier","1905-03-14","Meyronnes","Basses-Alpes (Alpes-de-Haute-Provence)","Basses-Alpes (Alpes-de-Haute-Provence)","Condamine (La) (La Condamine-Châtelard)",null,"Résistant","Fusillé","1944-06-16","1944-06-16",null,null,"Capturé par les Allemands les armes à la main ; fusillé. Inhumé à  La Condamine","1900-11-19",1900,11,19]
[23,8603,52,"FRUCHIER","Henri Paul",null,"1926-05-20","Ciotat (La) ","Bouches-du-Rhône","Bouches-du-Rhône","Ciotat (La)",null,"FTP","Fusillé","1944-07-30","1944-07-30",null,null,"Fusillé au cours d'une opération de police allemande ; inhumé à Prads ; exhumé le 20/10/1944","1926-05-20",1926,5,20]
[24,18189,100,"RICCI","René François",null,"1920-11-01","Nice","Alpes-Maritimes","Alpes-Maritimes",null,null,"FTP","Fusillé","1944-07-30","1944-07-30",null,null,"inhumé à Prads ; exhumé le 28/11/1944","1920-11-01",1920,11,1]
[25,3583,null,"BURLE","Abel",null,"1923-12-18","Manosque","Basses-Alpes (Alpes-de-Haute-Provence)","Basses-Alpes (Alpes-de-Haute-Provence)",null,null,"AS","Tué","1944-06-11","1944-06-11",null,null,"Tué alors qu'il tentait de fuir. Inhumé à Valensole","1923-12-18",1923,12,18]
[26,12566,4,"LATTRE (de)","Robert","Officier à la retraite",null,null,null,"Alpes-Maritimes","Nice",null,null,"Fusillé","1944-08-15","1944-08-15",null,null,"Fusillé quartier de l'Ariane à Nice. 50 ans, officier en retraite domicilié à Nice"]
[27,1986,21,"BIGGI","Antoine Auguste","Mineur",null,null,null,"Basses-Alpes (Alpes-de-Haute-Provence)","Manosque",null,"Agent de Liaison","Fusillé","1944-07-06","1944-07-06","Manosque","Basses-Alpes (Alpes-de-Haute-Provence)","Fusillé par une patrouille allemande"]
[28,3080,25,"BOYER",null,null,null,null,null,"Basses-Alpes (Alpes-de-Haute-Provence)","Digne (Digne-les-Bains)",null,"FFI","Tué"]
[29,3584,25,"BURLE","Arsène Alexandre","Cultivateur","1898-04-29","Saint-Martin de Brômes","Basses-Alpes (Alpes-de-Haute-Provence)","Basses-Alpes (Alpes-de-Haute-Provence)","Saint-Martin de Brômes",null,"FTP","Fusillé","1944-06-16","1944-06-16","Valensole","Basses-Alpes (Alpes-de-Haute-Provence)",null,"29/04/1898",{"$f":"MID(T30,7,4)","v":"1898"},{"$f":"MID(T30,4,2)","v":"04"},{"$f":"MID(T30,1,2)","v":"29"}]
[30,1830,20,"BERTOLUCCI","Orlando Giovanni","Mineur","1925-02-17","Saint-Zacharie","Var","Var","Brignoles",null,"FTP","Fusillé","1944-06-17","1944-06-17","Saint-Martin-de-Brômes","Basses-Alpes (Alpes-de-Haute-Provence)","Fait prisonnier sur la route de Riez à  Allemagne (Allemagne-en-Provence)","1925-02-17",1925,2,17]
[31,1626,25,"BEREGI",null,null,null,null,null,"Basses-Alpes (Alpes-de-Haute-Provence)","Digne (Digne-les-Bains)",null,"FFI","Fusillé"]
[32,9315,60,"GILLY","Ernest ","Cantonnier","1917-11-05","Revel","Basses-Alpes (Alpes-de-Haute-Provence)","Basses-Alpes (Alpes-de-Haute-Provence)",null,null,"Résistant","Fusillé","1944-06-16","1944-06-16",null,null,"Fusillé par les Allemands. inhumé à Barcelonnette","1917-11-05",1917,11,5]
[33,8665,null,"GADOTTI","Jules",null,"1917-11-17","Meano","Italie","Basses-Alpes (Alpes-de-Haute-Provence)","Digne (Digne-les-Bains)",null,"FFI","Mort accidentelle","1944-09-05","1944-09-05","Senez","Basses-Alpes (Alpes-de-Haute-Provence)","Mort à Senez au cours d'une opération de déminage. Naturalisé le 19 mai 1939 ; inhumé à Digne","1917-11-17",1917,11,17]
[34,1407,17,"BEAUDUN","Robert Jean Joseph","Cultivateur","1924-02-18","Digne (Digne-les-Bains)","Basses-Alpes (Alpes-de-Haute-Provence)","Basses-Alpes (Alpes-de-Haute-Provence)","Saint-Estève (Hautes-Duyes)",null,"Résistant","Fusillé","1944-07-01","1944-07-01",null,null,"inhumé à St Estève","1924-02-18",1924,2,18]
[35,872,14,"BAILLE","léon Marius Honoré","mineur ","1901-07-05","Oraison","Basses-Alpes (Alpes-de-Haute-Provence)","Basses-Alpes (Alpes-de-Haute-Provence)","Sigonce",null,"AS","Fusillé","1944-06-08","1944-06-08","Forcalquier","Basses-Alpes (Alpes-de-Haute-Provence)","Participa à l'occupation de Forcalquier ; les Allemands reprirent la ville et il fut fusillé","1901-07-05",1901,7,5]
[36,1310,null,"BAUDOIN","Roger ",null,null,null,null,"Var","Carcés",null,"FTP","Tué","1944-08-11","1944-08-11","Sainte-Croix-du-Verdon","Basses-Alpes (Alpes-de-Haute-Provence)","Tué au cours de l'attaque par les Allemands du camp de Sainte-Croix. Inhumé à Riez",null,1900,1,0]
[37,10276,null,"GUILLOT","Valmy",null,"1907-06-10","Restigné","Indre-et-Loire","Basses-Alpes (Alpes-de-Haute-Provence)","Digne (Digne-les-Bains)",null,"Résistant","Tué","1944-06-09","1944-06-09","Digne (Digne-les-Bains)","Basses-Alpes (Alpes-de-Haute-Provence)","Tué par une sentinelle à Gaubert. Inhumé à Digne","1907-06-10",1907,6,10]
[38,8843,56,"GARCIN","Jules Ferdinand ","Douanier","1899-08-23","Saint-Paul (Saint-Paul-sur-Ubaye)","Basses-Alpes (Alpes-de-Haute-Provence)","Basses-Alpes (Alpes-de-Haute-Provence)","Condamine (La) (La Condamine-Châtelard)",null,"Résistant","Fusillé","1944-06-16","1944-06-16",null,null,"Fusillé sur place [à Jausiers]","23/08/1899",{"$f":"MID(T39,7,4)","v":"1899"},{"$f":"MID(T39,4,2)","v":"08"},{"$f":"MID(T39,1,2)","v":"23"}]
[39,9243,null,"GHIRARDELLI","Marius",null,"1920-07-04","Roquefort (Roquefort-la-Bédoule)","Bouches-du-Rhône","Bouches-du-Rhône","La Ciotat",null,null,"Tué","1944-07-25","1944-07-25","Senez","Basses-Alpes (Alpes-de-Haute-Provence)","Tué lors de l'attaque de Lamelle (Senez)","1920-07-04",1920,7,4]
[40,9358,"62 Bis","GIRARD","Ernest Jules","Cultivateur","1921-03-06","Colmars","Basses-Alpes (Alpes-de-Haute-Provence)","Basses-Alpes (Alpes-de-Haute-Provence)","Colmars ",null,"Résistant","Fusillé","1944-06-11","1944-06-11","Saint-André-les-Alpes","Basses-Alpes (Alpes-de-Haute-Provence)","Fusillé sur la place publique de Saint-André-les-Alpes, porteur de munitions ; se rendait à Saint-André-les-Alpes","1921-03-06",1921,3,6]
[41,311,5,"AMOUREUX","Jean Maxime ","Retraité des eaux et forêts","1885-02-05","Saint-André-les-Alpes","Basses-Alpes (Alpes-de-Haute-Provence)","Basses-Alpes (Alpes-de-Haute-Provence)","Estoublon",null,"FTP","Fusillé","1944-06-17","1944-06-17","Estoublon","Basses-Alpes (Alpes-de-Haute-Provence)","Fusillé comme otage à Estoublon","05/02/1885",{"$f":"MID(T42,7,4)","v":"1885"},{"$f":"MID(T42,4,2)","v":"02"},{"$f":"MID(T42,1,2)","v":"05"}]
[42,110,2,"AIMARD","Alexandre","Gendarme","1911-10-14","Saint-Laurent-du-Pont","Isère",null,null,null,null,"Fusillé",null,null,"Beauvezer","Basses-Alpes (Alpes-de-Haute-Provence)","Arrêté le 20/07/44 ; fusillé sans jugement le 22 juillet 1944 à Beauvezer","1911-10-14",1911,10,14]
[43,12556,75,"LATIL","Émile Fernand","Peintre","1902-10-04","Sisteron","Basses-Alpes (Alpes-de-Haute-Provence)","Basses-Alpes (Alpes-de-Haute-Provence)","Oraison",null,null,"Fusillé",null,null,"Signes","Var","Membre du comité départemental de la Résistance. Arrêté à Oraison, conduit aux Beaumettes ; cadavre découvert le 17 septembre 1944 dans le charnier de Signes","1902-10-04",1902,10,4]
[44,14106,123,"LIEUTIER","Aloart",null,null,null,null,"Basses-Alpes (Alpes-de-Haute-Provence)","Mison",null,"FFI","Tué",null,null,null,null,null,null,1900,1,0]
[45,12530,null,"LASSALE","Jean Édouard Marc Armand",null,null,"Marseille","Bouches-du-Rhône","Bouches-du-Rhône","Marseille ",null,"FTP","Tué","1944-06-17","1944-06-17","Estoublon","Basses-Alpes (Alpes-de-Haute-Provence)","Chef FTP. Inhumé à Estoublon",null,1900,1,0]
[46,12881,77,"LEBRE","Louis ","Cantonnier","1904-07-25","Méolans (Méolans-Revel)","Basses-Alpes (Alpes-de-Haute-Provence)","Basses-Alpes (Alpes-de-Haute-Provence)","Condamine (La) (La Condamine-Châtelard)",null,"Résistant","Fusillé ","1944-06-16","1944-06-16",null,null,"Membre actif de la Résistance. Inhumé à Barcelonnette","1904-07-25",1904,7,25]
[47,860,13,"BAGARRY","Fernand Raymond","Meunier","1922-12-04","Montferrat","Var","Alpes-Maritimes","Séranon",null,null,"Fusillé","1944-07-18","1944-07-18","Norante (Chaudon-Norante)","Basses-Alpes (Alpes-de-Haute-Provence)","Fusillé comme otage à Norante","1922-12-04",1922,12,4]
[48,518,7,"ARNAUD","Émile Joseph","Douanier","1907-06-11","Saint-Paul (Saint-Paul-sur-Ubaye)","Basses-Alpes (Alpes-de-Haute-Provence)","Basses-Alpes (Alpes-de-Haute-Provence)","Condamine (La) (La Condamine-Châtelard)",null,"Résistant","Fusillé ","1944-06-16","1944-06-16",null,null,"Membre actif de la Résistance. Inhumé à la Condamine-Châtelard","1907-06-11",1907,6,11]
[49,460,6,"APPLANAT","André Michel","Ouvrier mineur","1912-11-10","Beaumettes ","Vaucluse","Basses-Alpes (Alpes-de-Haute-Provence)","Sigonce ",null,"AS","Fusilllé","1944-06-08","1944-06-08","Forcalquier","Basses-Alpes (Alpes-de-Haute-Provence)","AS de Sigonce. Participa à l'occupation de Forcalquier ; les Allemands reprirent la ville et il fut fusillé","1912-11-10",1912,11,10]
[50,25,null,"ABELLO","Antoine",null,"1912-08-29","Stroppo","Italie","Basses-Alpes (Alpes-de-Haute-Provence)","Allemagne (Allemagne-en-Provence)",null,"FTP","Tué","1944-06-16","1944-06-16",null,null,"Tué au cours d'une opération de police ; inhumé à Allemagne-en- Provence","1912-08-29",1912,8,29]
[51,8767,54,"GALLO","Francis Ange","Étudiant","1926-07-23","Nice","Alpes-Maritimes",null,null,null,null,"Fusillé","1944-06-11","1944-06-11","Saint-Julien-du-Verdon","Basses-Alpes (Alpes-de-Haute-Provence)",null,"1926-07-23",1926,7,23]
[52,9219,58,"GERSON","Maurice","Courtier","1887-08-27","Constantinople (Istanboul)","Turquie","Basses-Alpes (Alpes-de-Haute-Provence)","Digne (Digne-les-Bains)",null,null,"Fusillé","1944-07-18","1944-07-18","Norante (Chaudon-Norante)","Basses-Alpes (Alpes-de-Haute-Provence)","Fusillé comme otage à Norante","27/08/1887",{"$f":"MID(T53,7,4)","v":"1887"},{"$f":"MID(T53,4,2)","v":"08"},{"$f":"MID(T53,1,2)","v":"27"}]
[53,5507,41,"COURGEY","Marcel Alphonse","Sous-chef comptable","1903-10-05","Maison-Alfort","Seine (Val-de-Marne)","Basses-Alpes (Alpes-de-Haute-Provence)","Digne (Digne-les-Bains)",null,null,"Fusillé","1944-07-18","1944-07-18","Norante (Chaudon-Norante)","Basses-Alpes (Alpes-de-Haute-Provence)","Fusillé comme otage à Norante","1903-10-05",1903,10,5]
[54,10149,null,"GUIDETTI","René ",null,"1926-04-19","Ciotat (La)","Bouches-du-Rhône","Basses-Alpes (Alpes-de-Haute-Provence)","Bayons",null,null,"Tué","1944-07-27","1944-07-27","Bayons ","Basses-Alpes (Alpes-de-Haute-Provence)",null,"1926-04-19",1926,4,19]
[55,5864,125,"DANIEL",null,null,null,null,null,"Basses-Alpes (Alpes-de-Haute-Provence)","Pierrevert",null,null,"Tué",null,null,null,null,"Civil",null,1900,1,0]
[56,7707,124,"ÉTIENNE","Léonardo",null,null,null,null,"Basses-Alpes (Alpes-de-Haute-Provence)","Oraison",null,null,"Tué",null,null,null,null,"Civil",null,1900,1,0]
[57,15382,124,"MELANI",null,null,null,null,null,"Basses-Alpes (Alpes-de-Haute-Provence)","Montfort",null,"FFI","Tué",null,null,null,null,null,null,1900,1,0]
[58,19674,112,"SIMONDI","Gabriel","Ouvrier agricole","1925-01-24","Brignoles","Var","Var","Brignoles",null,"FTP","Fusillé ","1944-06-16","1944-06-16","Saint-Martin-de-Brômes","Basses-Alpes (Alpes-de-Haute-Provence)",null,"1925-01-24",1925,1,24]
[59,4248,34,"CENCIAI","Adam Antoine ","Cimentier","1911-11-12","Nice","Alpes-Maritimes","Basses-Alpes (Alpes-de-Haute-Provence)","Entrevaux",null,"Agent de liaison","Fusillé","1944-06-14","1944-06-14",null,null,"Inhumé à Moriez","1911-11-12",1911,11,12]
[60,6824,52,"DIFFONTY","Henri",null,"1898-04-20",null,null,"Bouches-du-Rhône","Ciotat (La)",null,null,"Tué","1944-04-05","1944-04-05","Lambruisse","Basses-Alpes (Alpes-de-Haute-Provence)","Tué à la ferme Laval","20/04/1898",{"$f":"MID(T61,7,4)","v":"1898"},{"$f":"MID(T61,4,2)","v":"04"},{"$f":"MID(T61,1,2)","v":"20"}]
[61,19863,113,"STCHEJLOFF","Wladimir",null,"1883-06-15","Posovaw-Pawlovroa","Russie","Basses-Alpes (Alpes-de-Haute-Provence)","Mane",null,null,"Tué","1944-04-29","1944-04-29","Mane","Basses-Alpes (Alpes-de-Haute-Provence)","Juif","15/06/1883",{"$f":"MID(T62,7,4)","v":"1883"},{"$f":"MID(T62,4,2)","v":"06"},{"$f":"MID(T62,1,2)","v":"15"}]
[62,8230,50,"FONDRINI","Antoine ","Cultivateur","1924-12-02","Valnegra","Italie","Basses-Alpes (Alpes-de-Haute-Provence)","Allemagne (Allemagne-en-Provence)",null,"FTP","Tué","1944-06-17","1944-06-17","Allemagne (Allemagne-en-Provence)","Basses-Alpes (Alpes-de-Haute-Provence)","Tué au cours d'une opération de police","1924-12-02",1924,12,2]
[63,19578,null,"SGARAVIZZI","René",null,"1926-03-11","Nice","Alpes-Maritimes","Basses-Alpes (Alpes-de-Haute-Provence)","Riez",null,"FTP","Tué","1944-08-19","1944-08-19",null,null,"Tué au Feyrniolles Digne lors de la libération ; inhumé à Riez","1926-03-11",1926,3,11]
[64,4194,33,"CAVAGNI","Émile Baptiste","Navigateur","1903-12-29","Constantine","Algérie","Bouches-du-Rhône","Marseille ",null,null,"Fusillé","1944-06-08","1944-06-08",null,null,"Participa à l'occupation de Forcalquier ; les Allemands reprirent la ville et il fut fusillé","1903-12-29",1903,12,29]
[65,20883,125,"VIAL MERANDA",null,null,null,null,null,"Basses-Alpes (Alpes-de-Haute-Provence)","Saint-André-les-Alpes",null,null,"Disparu"]
[66,325,122,"ANCELVIN",null,null,null,null,null,null,null,null,null,"Tué"]
[67,1695,123,"BERNARD",null,null,null,null,null,"Basses-Alpes (Alpes-de-Haute-Provence)","Sisteron",null,"FFI","Tué"]
[68,13659,null,"LÉON","Victor Germain",null,"1921-12-06",null,null,"Var","Ramatuelle",null,"FFI","Tué","1944-08-17","1944-08-17",null,null,"Tué lors de la libération de Castellane","1921-12-06",{"$f":"YEAR(T69)","v":1921},{"$f":"MONTH(T69)","v":12},{"$f":"DAY(T69)","v":6}]
[69,5556,null,"COUTEL","Joseph",null,"1899-02-21","Noyers-sur-Jabron","Basses-Alpes (Alpes-de-Haute-Provence)","Basses-Alpes (Alpes-de-Haute-Provence)","Malijai",null,null,"Exécuté","1944-08-19","1944-08-19",null,null,"Blessé par une rafale de fusils mitrailleur puis achevé à coups de mitraillettes ; inhumé à Malijai","21/02/1899",{"$f":"MID(T70,7,4)","v":"1899"},{"$f":"MID(T70,4,2)","v":"02"},{"$f":"MID(T70,1,2)","v":"21"}]
[70,5271,null,"CONSTANT",null,null,null,null,"Italie","Alpes-Maritimes","Villeneuve-Loubet",null,null,"inconnu","1944-07-01","1944-07-01",null,null,"inhumé à Barrême",null,1900,1,0]
[71,5368,39,"CORNU","Eugène","Exploitant forestier","1906-04-01","Méailles","Basses-Alpes (Alpes-de-Haute-Provence)","Basses-Alpes (Alpes-de-Haute-Provence)","Annot",null,null,"Fusillé ","1944-04-25","1944-04-25","Annot","Basses-Alpes (Alpes-de-Haute-Provence)",null,"1906-04-01",1906,4,1]
[72,3898,13,"CAPPOBIANCO","Jean",null,"1909-07-04",null,null,null,null,null,null,"Fusillé","1944-04-17","1944-04-17","Volx","Basses-Alpes (Alpes-de-Haute-Provence)",null,"1909-07-04",1909,7,4]
[73,14133,78,"LIPMANN","Jean","Huissier",null,null,null,"Alpes-Maritimes","Nice",null,null,"Fusillé","1944-07-30","1944-07-30",null,null,"Capitaine de réserve de l'armée secrète . fusillé  au cours d'une opération de police allemande ; inhumé à Prads ; exhumé fin novembre 1944",null,1900,1,0]
[74,16510,null,"NATIVI","Yves Martial",null,"1923-06-23","Pesles-et-Boves","Aisne","Basses-Alpes (Alpes-de-Haute-Provence)","Valensole",null,"FTP","Tué","1944-04-17","1944-04-17",null,null,"2e compagnie FTP de Provence ; tué. \"Plutôt que de se rendre a essayé de fuir et a été tué par Allemands et miliciens au quartier de la Salaou ; inhumé à Castellane","1923-06-28",1923,6,28]
[75,1589,null,"BENNER","Robert",null,"1904-05-11","Nice","Alpes-Maritimes","Alpes-Maritimes","Nice",null,"FTP","Tué","1944-07-05","1944-07-05","Norante (Chaudon-Norante)","Basses-Alpes (Alpes-de-Haute-Provence)","Tué au combat","1904-05-11",1904,5,11]
[76,20850,null,"VERNOUX","Jean ","Chef d'entreprise","1903-01-09","Marseille","Bouches-du-Rhône","Basses-Alpes (Alpes-de-Haute-Provence)","Digne (Digne-les-Bains)",null,null,"Tué","1944-06-11","1944-06-11",null,null,"Tué au combat ; inhumé à Valensole","1903-01-09",1903,1,9]
[77,4932,null,"CLAIRSIN","Maurice","Bûcheron","1911-07-24","Suilly-la-Tour","Nièvre","Basses-Alpes (Alpes-de-Haute-Provence)","Bras-d'Asse",null,"FTP","Fusillé","1944-06-11","1944-06-11","Mézel","Basses-Alpes (Alpes-de-Haute-Provence)",null,"1911-07-24",1911,7,24]
[78,10130,63,"GUIBERT","Albert",null,"1926-03-06","Marseille","Bouches-du-Rhône",null,null,null,"FTP","Fusillé","1944-07-30","1944-07-30",null,null,"inhumé à Prads","1926-03-06",1926,3,6]
[79,11223,123,"JAMES",null,null,null,null,null,null,null,null,"Civil","Fusillé",null,null,null,null,null,null,1900,1,0]
[80,3634,26,"CABASSE","André Georges","Mineur","1923-02-22","Montfort-sur-Argens","Var","Var","Montfort-sur-Argens",null,"FTP","Fusillé","1944-06-16","1944-06-16","Saint-Martin-de-Brômes","Basses-Alpes (Alpes-de-Haute-Provence)","Fait prisonnier sur la route de Riez à  Allemagne (Allemagne-en-Provence)","1923-02-22",1923,2,22]
[81,7976,null,"FÉRAUD","Albert",null,"1920-09-19","Valensole","Basses-Alpes (Alpes-de-Haute-Provence)","Basses-Alpes (Alpes-de-Haute-Provence)","Valensole",null,"AS","Tué","1944-06-11","1944-06-11","Valensole","Basses-Alpes (Alpes-de-Haute-Provence)","\"circulait en camion avec son groupe sur la route de Valensole à Manosque. Surpris par les Allemands, a été tué alors qu'il tentait de se sauver. N'était pas armé.\" Inhumé à Valensole","1920-09-19",1920,9,19]
[82,8121,49,"FISZEL","Léon","Fourreur","1906-02-28","Sosnovice","Pologne","Basses-Alpes (Alpes-de-Haute-Provence)","Entrevaux",null,null,"Tué","1944-07-18","1944-07-18","Entrevaux","Basses-Alpes (Alpes-de-Haute-Provence)","Tué par un officier allemand","1906-02-28",1906,2,28]
[83,7401,null,"DURAND","Guy Georges Pierre",null,"1923-09-23","Creusot (Le)","Saône-et-Loire","Bouches-du-Rhône","Marseille ",null,null,"Tué","1944-08-11","1944-08-11","Montpezat (Montagnac-Montpezat)","Basses-Alpes (Alpes-de-Haute-Provence)","Tué par les Allemands  au cours de l'attaque du camp de Sainte-Croix ; inhumé à Riez","1923-09-23",1923,9,23]
[84,6888,null,"DOL","Laurent Ferdinand",null,"1921-08-10","Angles","Basses-Alpes (Alpes-de-Haute-Provence)","Basses-Alpes (Alpes-de-Haute-Provence)","Angles",null,"FTP",null,"1944-07-05","1944-07-05","Castellane","Basses-Alpes (Alpes-de-Haute-Provence)","Tué au col des Lèques lors d'un engagement contre les troupes allemandes ; inhumé à Angles","1921-08-10",1921,8,10]
[85,1674,19,"BERLAND","Pierre Jacques",null,"1925-10-27","Paris","Seine (Paris)","Var","Callian",null,"FTP","Fusillé","1944-07-30","1944-07-30",null,null,"Fusillé au cours d'une opération de police Allemande ; inhumé à Prads","1925-10-27",1925,10,27]
[86,859,12,"BAGARRE","Louis ","Agriculteur","1926-02-10","Brignolles","Var","Var","Val (Le)",null,"FTP","Fusillé","1944-06-16","1944-06-16","Saint-Martin-de-Brômes","Basses-Alpes (Alpes-de-Haute-Provence)","Fait prisonnier sur la route de Riez  à Allemagne. Fusillé","1926-02-10",1926,2,10]
[87,11318,null,"JAUSSAUD","Léon",null,"1902-04-25","Roche-des-Arnauds (La)","Hautes-Alpes","Basses-Alpes (Alpes-de-Haute-Provence)","Digne (Digne-les-Bains)",null,null,"Tué","1943-01-13","1943-01-13",null,null,"Tué en service commandé ; inhumé à Digne","1902-04-25",1902,4,25]
[88,6167,null,"DEGIOVANI","Jacques",null,"1909-08-15","Lottulo","Italie","Basses-Alpes (Alpes-de-Haute-Provence)","Barcelonnette",null,"FFI","Tué","1944-06-12","1944-06-12",null,null,"\"Blessé aux jambes, a été achevé par les Allemands\" ; inhumé à Tournoux","1909-08-15",1909,8,15]
[89,12658,null,"LAVAL","Jean Élie",null,"1880-19-11","Lalinde","Dordogne","Basses-Alpes (Alpes-de-Haute-Provence)","Annot",null,"Agent de liaison","Tué","1944-07-22","1944-07-22","Saint-Benoît","Basses-Alpes (Alpes-de-Haute-Provence)","Tué au Pont-de-Gueydan. \"Se trouvait en possession d'un message d'Alger, et avait ses deux fils dans la résistance\". Inhumé à Annot","11/09/1880",{"$f":"MID(T90,7,4)","v":"1880"},{"$f":"MID(T90,4,2)","v":"09"},{"$f":"MID(T90,1,2)","v":"11"}]
[90,11675,null,"KARCZ","Stanislas ","Mineur","1923-01-18","Zycheveo","Pologne","Basses-Alpes (Alpes-de-Haute-Provence)","Sigonce",null,"AS","Fusillé","1944-06-08","1944-06-08","Forcalquier","Basses-Alpes (Alpes-de-Haute-Provence)","AS de Sigonce. Participa à l'occupation de Forcalquier ; les Allemands reprirent la ville et il fut fusillé","1923-01-18",1923,1,18]
[91,7790,null,"FAISSOLLE ou FAISSALE","Joseph",null,"1923-02-05","Annot","Basses-Alpes (Alpes-de-Haute-Provence)","Basses-Alpes (Alpes-de-Haute-Provence)","Annot",null,"FTP","Tué",null,null,"Annot","Basses-Alpes (Alpes-de-Haute-Provence)","\"Etant à Annot, a voulu s'échapper à la vue des Allemands. Des Allemands en embuscade sur la voie de chemin de fer, le voyant fuir, ont tiré et l'ont tué. Inhumé à Annot","1923-02-05",1923,2,5]
[92,924,15,"BALDO","Georges Maurice Jules","Agent d'assurance","1886-03-27","Desvres","Pas-de-Calais",null,null,null,null,"Fusillé","1944-05-11","1944-05-11","Saint-Julien-du-Verdon","Basses-Alpes (Alpes-de-Haute-Provence)","Emprisonné aux prisons nouvelles de Nice","27/03/1886",{"$f":"MID(T93,7,4)","v":"1886"},{"$f":"MID(T93,4,2)","v":"03"},{"$f":"MID(T93,1,2)","v":"27"}]
[93,21130,125,"WERNER",null,null,null,null,null,"Basses-Alpes (Alpes-de-Haute-Provence)","Peyruis ",null,"FFI","Fusillé",null,null,null,null,null,null,1900,1,0]
[94,15532,null,"MERLEN","Robert",null,"1923-04-02","Gravelines","Nord","Basses-Alpes (Alpes-de-Haute-Provence)","Entrevaux",null,"FTP","Tué","1944-06-17","1944-06-17",null,null,"Tué en combattant. Inhumé à Valensole","1923-04-02",1923,4,2]
[95,6533,null,"DEROMAS","Félix",null,"1914-03-04","Saint-Auban","Alpes-Maritimes","Var","Draguignan",null,"AS","Tué","1944-08-19","1944-08-19","Entrages",null,"Sergent AS au camp Fort de France. Tué lors d'une mission à Chabrières ; inhumé à Barrême","1914-03-04",1914,3,4]
[96,6464,null,"DENETER","Georges Henri",null,"1915-08-02","Monvaux","Nord","Basses-Alpes (Alpes-de-Haute-Provence)","Valensole",null,"FTP","Tué","1944-06-17","1944-06-17",null,null,"Tué en combattant .Inhumé à Valensole","1915-08-02",1915,8,2]
[97,3893,31,"CAPOBIANCO","Joseph",null,"1909-07-04","Toulon","Var","Basses-Alpes (Alpes-de-Haute-Provence)","Mane",null,null,"Fusillé","1944-06-18","1944-06-18",null,null,"Inhumé à Volx","1909-07-04",1909,7,4]
[98,1673,25,"BERLAND",null,null,null,null,null,"Seine (Paris)","Paris",null,"FFI","Tué",null,null,null,null,null,null,1900,1,0]
[99,10862,67,"HIVERT","Roger Alfred","Facteur receveur des postes","1906-02-19","Saint-Martin de Brômes","Basses-Alpes (Alpes-de-Haute-Provence)","Basses-Alpes (Alpes-de-Haute-Provence)","Allemagne-en- Provence",null,"FTP","Fusillé","1944-06-16","1944-06-16","Allemagne (Allemagne-en-Provence)","Basses-Alpes (Alpes-de-Haute-Provence)","Fusillé sur la place publique d'Allemagne au cours d'une opération de police","1906-02-19",1906,2,19]
[100,10593,65,"HEIFT","Joël","Joailler","1888-09-29","Nantes","Loire-Inférieure (Loire-Atlantique)",null,null,null,null,"Abattu","1944-02-16","1944-02-16","Argenton","Basses-Alpes (Alpes-de-Haute-Provence)","Juif ; abattu par la Gestapo","29/09/1888",{"$f":"MID(T101,7,4)","v":"1888"},{"$f":"MID(T101,4,2)","v":"09"},{"$f":"MID(T101,1,2)","v":"29"}]
[101,10706,66,"HERAUD","Camille Julien Marcel ","Mineur","1925-12-09","Val (Le)","Var","Var","Val (Le)",null,"FTP","Fusillé ","1944-06-16","1944-06-16","Saint-Martin-de-Brômes","Basses-Alpes (Alpes-de-Haute-Provence)","Fait prisonnier sur la route de Riez à  Allemagne (Allemagne-en-Provence)","1925-12-09",1925,12,9]
[102,1627,18,"BEREGI","François","Représentant","1902-11-06","Giort","Hongrie","Alpes-Maritimes","Nice",null,null,"Fusillé","1944-07-18","1944-07-18","Chaudon-Norante","Basses-Alpes (Alpes-de-Haute-Provence)","Fusillé comme otage à Chaudon-Norante","1902-11-06",1902,11,6]
[103,3090,null,"BOYER","Gaston Augustin",null,"1913-07-01","Tanaron (La Robine-sur-Galabre)","Basses-Alpes (Alpes-de-Haute-Provence)","Basses-Alpes (Alpes-de-Haute-Provence)","Digne (Digne-les-Bains)",null,"FTP","Tué","1944-07-05","1944-07-05","Norante (Chaudon-Norante)","Basses-Alpes (Alpes-de-Haute-Provence)","Tué sur son camion à Norante. Inhumé à Digne","1913-07-01",1913,7,1]
[104,1841,null,"BERTRAND","Abel",null,"1899-10-05","Marseille","Bouches-du-Rhône","Basses-Alpes (Alpes-de-Haute-Provence)","Valensole",null,"AS","Tué","1944-06-11","1944-06-11",null,null,"Tué alors qu'il tentait de fuir. Il circulait avec son groupe sur la route de Valensole à Manosque, sans armes. Inhumé à Valensole","05/10/1899",{"$f":"MID(T105,7,4)","v":"1899"},{"$f":"MID(T105,4,2)","v":"10"},{"$f":"MID(T105,1,2)","v":"05"}]
[105,10441,64,"HADJIAJ","Frédéric Alfred",null,"1912-12-16",null,null,"Bouches-du-Rhône","Marseille ",null,"FTP","Tué","1944-06-16","1944-06-16","Allemagne (Allemagne-en-Provence)","Basses-Alpes (Alpes-de-Haute-Provence)","Fusillé sur la place publique d'Allemagne au cours d'une opération de police","1912-12-16",1912,12,16]
[106,19300,null,"SCARELLA","André",null,"1925-07-02",null,null,"Alpes-Maritimes","Nice",null,"FTPF","Tué","1944-03-27","1944-03-27","Castellane","Basses-Alpes (Alpes-de-Haute-Provence)","Tué quartier de Sianne ; inhumé à Castellane","1925-07-02",1925,7,2]
[107,19299,109,"SCARELLA","Ambriogio",null,null,null,null,null,null,null,"FTP","Fusillé","1944-06-16","1944-06-16","Allemagne (Allemagne-en-Provence)","Basses-Alpes (Alpes-de-Haute-Provence)","Fusillé sur la place publique d'Allemagne au cours d'une opération de police",null,1900,1,0]
[108,11224,null,"JAMES","Alphonse",null,"1903-07-15","Collobrières","Var","Basses-Alpes (Alpes-de-Haute-Provence)","Allemagne-en- Provence",null,"FTP","Tué","1944-06-16","1944-06-16","Allemagne (Allemagne-en-Provence)","Basses-Alpes (Alpes-de-Haute-Provence)","Tué à son domicile. Inhumé en Allemagne (Allemagne-en-Provence)","1903-07-15",1903,7,15]
[109,11138,70,"JACOB","Werner",null,"1923-01-19","Dilligen (Dillingen-sur-Sarre)","Allemagne","Basses-Alpes (Alpes-de-Haute-Provence)","Peyruis ",null,"AS","Fusillé","1944-06-08","1944-06-08","Forcalquier","Basses-Alpes (Alpes-de-Haute-Provence)","Groupe AS de Sigonce. Participa à l'occupation de Forcalquier ; les Allemands reprirent la ville et il fut fusillé","1923-01-19",1923,1,19]
[110,15117,84,"MASSELIER","Julien",null,"1895-06-01","Dunkerque","Nord",null,null,null,null,"Abattu","1944-06-07","1944-06-07","Sisteron","Basses-Alpes (Alpes-de-Haute-Provence)","Interné politique à Sisteron ; abattu par une sentinelle allemande","01/06/1895",{"$f":"MID(T111,7,4)","v":"1895"},{"$f":"MID(T111,4,2)","v":"06"},{"$f":"MID(T111,1,2)","v":"01"}]
[111,16681,88,"NOBLE","Raymond Julien Germain",null,"1914-08-12","Marseille","Bouches-du-Rhône","Basses-Alpes (Alpes-de-Haute-Provence)","Volx",null,"AS","Fusillé","1944-06-08","1944-06-08","Forcalquier","Basses-Alpes (Alpes-de-Haute-Provence)","Groupe AS de Saint-Maime. Participa à l'occupation de Forcalquier ; les Allemands reprirent la ville et il fut fusillé","1914-08-12",1914,8,12]
[112,15083,null,"MARY","Raymond ",null,"1904-03-27","Versailles","Seine-et-Oise (Yvelines)","Basses-Alpes (Alpes-de-Haute-Provence)","Digne (Digne-les-Bains)",null,"AS","Tué","1944-08-17","1944-08-17","Digne (Digne-les-Bains)","Basses-Alpes (Alpes-de-Haute-Provence)","Tué lors du bombardement de Digne. Inhumé à Digne","1904-03-27",1904,3,27]
[113,9077,57,"GEAY","Paul","Commissaire de police","1900-01-18","Donzères","Drôme","Basses-Alpes (Alpes-de-Haute-Provence)","Barcelonnette",null,"Résistant","Fusillé","1944-06-16","1944-06-16","Barcelonnette","Basses-Alpes (Alpes-de-Haute-Provence)","arrêté torturé fusillé par les Allemands ; inhumé à Barcelonnette","1900-01-18",1900,1,18]
[114,14950,null,"MARTIN","Alexandre","Forgeron","1906-06-01",null,null,null,"Marseille",null,"Communiste","Intoxiqué","1941-03-08","1941-03-08","Digne (Digne-les-Bains)","Basses-Alpes (Alpes-de-Haute-Provence)","arrêté ; intoxiqué au camp de concentration ; décédé à l'hôpital de Digne","1906-06-01",1906,6,1]
[115,14842,83,"MARINI","Laurent Antoine",null,"1923-07-04","Carren","Italie","Basses-Alpes (Alpes-de-Haute-Provence)","Manosque",null,"Agent de liaison","Fusillé","1944-07-06","1944-07-06","Manosque","Basses-Alpes (Alpes-de-Haute-Provence)","Porteur d'armes ; fusillé à Manosque par une patrouille allemande ","1923-07-04",1923,7,4]
[116,16103,null,"MONTI","Marius Louis",null,null,"Cannes","Alpes-Maritimes","Alpes-Maritimes","Cannes ",null,"FTP","Tué","1944-06-17","1944-06-17",null,null,"Tué en combattant. Inhumé à Valensole",null,1900,1,0]
[117,7781,48,"FAGGINOLO","Constant Jean","Mineur","1923-07-12","Montfort-sur- Argens","Var","Var","Montfort-sur- Argens",null,"FTP","Fusillé","1944-06-16","1944-06-16","Allemagne (Allemagne-en-Provence)","Basses-Alpes (Alpes-de-Haute-Provence)","Fait prisonnier et fusillé sur la route de Riez à Allemagne (Allemagne-en-Provence)","1923-07-12",1923,7,12]
[118,14859,123,"MARN","Raymond",null,null,null,null,"Basses-Alpes (Alpes-de-Haute-Provence)","Digne (Digne-les-Bains)",null,"FFI","Tué",null,null,null,null,"Tué en mission"]
[119,296,4,"AMIEL","Marcel","Cultivateur","1896-12-03","Esparrron-de-Verdon","Basses-Alpes (Alpes-de-Haute-Provence)","Basses-Alpes (Alpes-de-Haute-Provence)","Allemagne-en- Provence",null,"Résistant","Fusillé","1944-06-16","1944-06-16","Allemagne (Allemagne-en-Provence)","Basses-Alpes (Alpes-de-Haute-Provence)","Fusillé sur la place publique d'Allemagne au cours d'une opération de police","03/12/1896",{"$f":"MID(T120,7,4)","v":"1896"},{"$f":"MID(T120,4,2)","v":"12"},{"$f":"MID(T120,1,2)","v":"03"}]
[120,11535,123,"JOUVE",null,null,null,"Mison","Basses-Alpes (Alpes-de-Haute-Provence)","Basses-Alpes (Alpes-de-Haute-Provence)","Mison",null,"FFI","Tué "]
[121,19003,null,"SAID",null,null,null,null,"Algérie",null,null,null,null,"Tué","1944-07-08","1944-07-08",null,null,"Tué au cours d'une opération contre le camp. Inhumé à Sigonce. Appartenait au camps des Rousses à Sigonce sous les ordres de Rostagne"]
[122,20086,null,"TAPPOBIANCO",null,null,null,null,null,null,null,null,null,"Fusillé","1944-06-12","1944-06-12"]
[123,20116,125,"TARQUIN",null,null,null,null,null,"Basses-Alpes (Alpes-de-Haute-Provence)","Sisteron",null,"FFI","Tué "]
[124,20490,null,"TORRES","Diego","Mineur","1894-03-05","Turre","Espagne",null,null,null,"FFI","Fusillé",null,null,"Saint-Paul (Saint-Paul-sur-Ubaye)","Basses-Alpes (Alpes-de-Haute-Provence)","Fusillé aux Gleizolles, commune de Saint-Paul (Saint-Paul-sur-Ubaye)","05/03/1894",{"$f":"MID(T125,7,4)","v":"1894"},{"$f":"MID(T125,4,2)","v":"03"},{"$f":"MID(T125,1,2)","v":"05"}]
[125,20653,118,"UNIA","Gabriel","Journalier bûcheron","1924-10-21","Muy (Le)","Var","Var","Carcès",null,null,"Fusillé","1944-06-16","1944-06-16","Saint-Martin-de-Brômes","Basses-Alpes (Alpes-de-Haute-Provence)","fait prisonnier sur la route de Riez à Allemagne (Allemagne-en-Provence) et fusillé à Saint-Martin-de-Brômes","1924-10-21",1924,10,21]
[126,2872,null,"VIAL","Henri Paul",null,"1909-05-05","Pero-Casevecchie","Corse (Haute-Corse)","Basses-Alpes (Alpes-de-Haute-Provence)","Valensole","Château de la Fuite","AS","Mort des suites de ses blessures","1944-06-13","1944-06-13","Manosque","Basses-Alpes (Alpes-de-Haute-Provence)","Grièvement blessé lors d'une fuite  en camion avec son groupe, surpris par les Allemands sur la route de Valensole à Manosque. Inhumé à Valensole au cimetière de Villedieu","1909-05-05",1909,5,5]
[127,17149,null,"PASTORELLI","Joseph",null,"1920-10-12","Nice","Alpes-Maritimes","Alpes-Maritimes","Nice","18 Bd Gambetta","FTP","Tué","1944-04-08","1944-04-08",null,null,"Tué par les miliciens, lors d'une fuite devant un contrôle de la Gestapo et de la Milice. Inhumé à Valensole","1920-10-12",1920,10,12]
[128,169221,93,"PONS","Virgile","Cultivateur","1913-01-20","Mées (Les)","Basses-Alpes (Alpes-de-Haute-Provence)","Basses-Alpes (Alpes-de-Haute-Provence)","Mées (Les)",null,"Agent de liaison","Fusillé ","1944-08-19","1944-08-19",null,null,"Inhumé aux Mées","1913-01-20",1913,1,20]
[129,11027,null,"HUTINER","Jean Louis","Capitaine ",null,null,null,null,null,null,"FTP","Tué","1944-07-05","1944-07-05","Castellane","Basses-Alpes (Alpes-de-Haute-Provence)","Capitaine commandant la 5e compagnie FTP. Tué au cours d'un engagement contre les Allemands au col des Lèques. Inhumé à Beauvezer"]
[130,10746,null,"HERMITTE","Louis ",null,"1914-05-07","Mexico","Mexique","Basses-Alpes (Alpes-de-Haute-Provence)","Digne (Digne-les-Bains)","Quartier du Tivoli","Civil","Tué","1944-07-24","1944-07-24",null,null,"Non résistant. Tué lors d'une attaque des Résistants alors qu'il faisait partie d'un convoi de camions réquisitionnés par l'autorité allemande. Inhumé aux  Sièyes","1914-05-07",1914,5,7]
[131,21148,null,"WILMART","Abel Émile","Commandant","1886-10-27","Glageon","Nord","Alpes-Maritimes","Nice","Rue d'Angleterre","Résistant","Abattu","1944-06-06","1944-06-06","Sisteron","Basses-Alpes (Alpes-de-Haute-Provence)","Camp de Saint-Geniez. Lâchement abattu par la gendarmerie de Sisteron à la Beaume de Sisteron alors qu'il allait prendre le commandement du maquis de Saint-Geniez. Inhumé à Sisteron","27/10/1886",{"$f":"MID(T132,7,4)","v":"1886"},{"$f":"MID(T132,4,2)","v":"10"},{"$f":"MID(T132,1,2)","v":"27"}]
[132,16919,124,"PONS",null,null,null,null,null,"Basses-Alpes (Alpes-de-Haute-Provence)","Mées (Les)",null,"Civil","Fusillé"]
[133,17231,null,"PEREZ","Jean",null,"1921-10-21","Oran","Algérie","Alpes-Maritimes","Marseille","Rue Breteuil Rouge-Midi","agent de liaison","Fusillé","1944-06-14","1944-06-14","Moriez","Basses-Alpes (Alpes-de-Haute-Provence)","Fusillé par les Allemands. Adresse du domicile de son frère ; inhumé à Moriez","1921-10-21",{"$f":"YEAR(T134)","v":1921},{"$f":"MONTH(T134)","v":10},{"$f":"DAY(T134)","v":21}]
[134,17465,94,"PRESTIA","Guiseppe",null,"1917-03-19","Saïacca","Italie","Var","Brignoles",null,"FTP","Fusillé","1944-06-16","1944-06-16","Saint-Martin-de-Brômes","Basses-Alpes (Alpes-de-Haute-Provence)","Fusillé à Saint-Martin-de-Brômes après avoir été fait prisonnier sur la route de Riez à Allemagne","1917-03-19",1917,3,19]
[135,20838,123,"VERMOND","Jean",null,null,null,null,"Haute-Loire","Lande",null,"FFI","Tué"]
[136,20954,119,"VINCENT","Arthur","Cultivateur","1912-07-08","Vachères","Basses-Alpes (Alpes-de-Haute-Provence)","Basses-Alpes (Alpes-de-Haute-Provence)","Vachères",null,"AS","Brûlé vif ","1944-04-20","1944-04-20","Vachères","Basses-Alpes (Alpes-de-Haute-Provence)","AS 1943, SAP 1944 ; après avoir été interrogé violemment par les Allemands puis trainé dans une grange qui fut incendiée","1912-07-08",1912,7,8]
[137,9749,122,"GRAC","Aimé",null,null,null,null,"Basses-Alpes (Alpes-de-Haute-Provence)","Braux",null,"Civil","Fusillé",null,null,"Braux","Basses-Alpes (Alpes-de-Haute-Provence)"]
[139,17542,95,"PROT","Louis ","Mineur","1902-08-13","Pinasca","Italie","Basses-Alpes (Alpes-de-Haute-Provence)","Sigonce",null,"AS","Fusillé","1944-06-08","1944-06-08","Forcalquier","Basses-Alpes (Alpes-de-Haute-Provence)","Participa à l'occupation de Forcalquier ; les Allemands reprirent la ville et il fut fusillé","1902-08-13",1902,8,13]
[140,18732,null,"ROUME","Martial",null,"1906-06-09","Valensole","Basses-Alpes (Alpes-de-Haute-Provence)","Basses-Alpes (Alpes-de-Haute-Provence)"," Valensole",null,"FTP","Tué","1944-06-17","1944-06-17",null,null,"Tué au combat ; inhumé au cimetière de Valensole","1906-06-09",1906,6,9]
[141,18838,null,"ROUX","Marcel",null,"1921-09-12","Peipin","Basses-Alpes (Alpes-de-Haute-Provence)","Basses-Alpes (Alpes-de-Haute-Provence)","Sisteron (Bons-Enfants (Les)",null,"FFI","Tué","1944-07-26","1944-07-26","Bayons ","Basses-Alpes (Alpes-de-Haute-Provence)","Tué lors de l'attaque du camp de Bayons par les troupes allemandes stationnées à Sisteron ; inhumé à Bayons","1924-09-12",1924,9,12]
[142,17733,99,"QUIRAL","René","Peintre","1918-11-11","Digne (Digne-les-Bains)","Basses-Alpes (Alpes-de-Haute-Provence)","Basses-Alpes (Alpes-de-Haute-Provence)","Digne (Digne-les-Bains)",null,"Maquisard ","Fusillé","1944-07-20","1944-07-20",null,null,"Fusillé par les Allemands à la Morellière, canton de Senez","1918-11-11",1918,11,11]
[143,17750,null,"RABEL","Justin Roger",null,"1917-06-21","Valensole","Basses-Alpes (Alpes-de-Haute-Provence)","Basses-Alpes (Alpes-de-Haute-Provence)","Valensole",null,"FTP","Tué","1944-06-17","1944-06-17",null,null,"Tué au combat","1917-06-21",1917,6,21]
[144,18467,103,"ROCHE","Robert Julien","Mineur","1922-01-01","Pierrerue","Basses-Alpes (Alpes-de-Haute-Provence)",null,null,null,"AS","Fusillé","1944-06-08","1944-06-08","Forcalquier","Basses-Alpes (Alpes-de-Haute-Provence)","AS de Sigonce. Participa à l'occupation de Forcalquier ; les Allemands reprirent la ville et il fut fusillé","1922-01-01",1922,1,1]
[145,18840,null,"ROUX","Pierre",null,"1923-03-12","Sisteron (Bons-Enfants (Les)","Basses-Alpes (Alpes-de-Haute-Provence)","Basses-Alpes (Alpes-de-Haute-Provence)","Sisteron (Bons-Enfants (Les)",null,"Résistant","Tué","1944-07-26","1944-07-26","Bayons ","Basses-Alpes (Alpes-de-Haute-Provence)","Camp de Sourribes, Bayons… Tué lors de l'attaque du camp de Bayons par les troupes allemandes stationnées à Sisteron. Inhumé à Bayons","1923-03-12",1923,3,12]
[146,18845,null,"ROUX","René",null,"1924-12-25","Marseille","Bouches-du-Rhône","Basses-Alpes (Alpes-de-Haute-Provence)","Clumanc",null,"FFI","Tué","1944-06-11","1944-06-11",null,null,"Tué au combat. Inhumé à Barême","1924-12-25",1924,12,25]
[147,17621,97,"PUSTEL","Lucien","Cultivateur","1911-04-23","Bayons","Basses-Alpes (Alpes-de-Haute-Provence)","Basses-Alpes (Alpes-de-Haute-Provence)","Bayons",null,"Civil","Exécuté","1944-07-26","1944-07-26",null,null,"Exécuté par la milice Waffen SS. Inhumé à Bayons","1911-04-23",1911,4,23]
[148,18427,102,"ROBINEAU",null,"Prêtre",null,null,null,"Basses-Alpes (Alpes-de-Haute-Provence)","Castellane",null,null,"Fusillé","1944-08-15","1944-08-15","Nice","Alpes-Maritimes","Fusillé par les Allemands au quartier de l'Ariane (Nice) après avoir été arrêté par la Gestapo à Castellane puis incarcéré aux \"prisons nouvelles\" à Nice. Aumônier de la Résistance"]
[149,12550,null,"LATCH","Joseph",null,null,null,null,null,null,null,"FTP","Tué","1944-08-05","1944-08-05",null,null,"13e compagnie FTP. Tué au combat. Inhumé à Barrême"]
[150,9218,null,"GERSON",null,null,null,null,null,"Bouches-du-Rhône","Marseille",null,null,"Fusillé","1944-07-14","1944-07-14"]
[151,9244,null,"GHIRARDELLI","Marius",null,"1920-07-04",null,null,"Bouches-du-Rhône","Ciotat (La)","Bd Michelet",null,"Tué","1944-07-20","1944-07-20",null,null,"Tué à la Tuillière","1920-07-04",1920,7,4]
[152,9313,null,"GILLY","Abel Joseph",null,"1921-01-13","Valensole","Basses-Alpes (Alpes-de-Haute-Provence)","Basses-Alpes (Alpes-de-Haute-Provence)","Valensole",null,"FTP","Tué","1944-06-17","1944-06-17",null,null,"Tué au combat. Inhumé à Valensole","1921-01-13",1921,1,13]
[153,9343,62,"GIORDAN","Félix","Cultivateur","1915-02-26","Coaraze","Alpes-Maritimes","Hautes-Alpes","Coaraze",null,null,"Fusillé","1944-06-11","1944-06-11","Saint-Julien-du-Verdon","Basses-Alpes (Alpes-de-Haute-Provence)","Interné aux \"prisons nouvelles\" à Nice, puis fusillé ","1915-02-26",1915,2,26]
[154,286,3,"AMBLARD née SABANINI","Irène","Cultivatrice","1899-11-07","Boulino","Italie","Basses-Alpes (Alpes-de-Haute-Provence)","Sigonce",null,null,"Tuée","1944-07-08","1944-07-08","Sigonce","Basses-Alpes (Alpes-de-Haute-Provence)","Tuée au cours d'une opération de force des Allemands contre le maquis de Rostagne. Hébergeait le maquis de Rostagne. Tuée sur place","07/11/1899",{"$f":"MID(T154,7,4)","v":"1899"},{"$f":"MID(T154,4,2)","v":"11"},{"$f":"MID(T154,1,2)","v":"07"}]
[155,3806,29,"CAMPAN","Gilbert","Étudiant","1927-12-19","Paris","Seine (Paris)",null,null,null,"Civil","Fusillé","1944-06-11","1944-06-11","Saint-Julien-du-Verdon","Basses-Alpes (Alpes-de-Haute-Provence)","Fusillé après avoir été emprisonné aux \"prisons nouvelles\" à Nice","1927-12-19",1927,12,19]
[156,14665,92,"MANFRED (voir Pierre-Rose)","Fiche vide"]
[157,1357,1204,"BAYLE","Léon",null,null,null,null,"Basses-Alpes (Alpes-de-Haute-Provence)","Sigonce",null,"FFI","Tué"]
[158,11888,73,"KRIQUEBERK","Louis ","Agent de liaison","1924-04-25",null,null,"Puy-de-Dôme","Clermont- Ferrand",null,"Agent de liaison","Fusillé","1944-06-11","1944-06-11",null,null,"Trouvé porteur d'armes, fusillé. Inhumé à Saint-André-les-Alpes","1924-04-25",1924,4,25]
[159,1378,16,"BEAL","Marcel","Chef de gendarmerie","1911-02-01","Saint-Agrève","Ardèche","Basses-Alpes (Alpes-de-Haute-Provence)","Colmars",null,null,"Exécuté","1944-07-20","1944-07-20","Beauvezer","Basses-Alpes (Alpes-de-Haute-Provence)","Arrêté puis exécuté sans jugement ","1911-02-01",1911,2,1]
[160,21208,120,"ZAMURA","Simon","Bûcheron","1914-09-27","Alméria (province)","Espagne","Basses-Alpes (Alpes-de-Haute-Provence)","Mées (Les)",null,"Travailleur étranger","Tué","1944-07-16","1944-07-16","Oraison","Basses-Alpes (Alpes-de-Haute-Provence)","Bûcheron au groupement de travailleurs étrangers des Mées","1914-09-27",1914,9,27]
[161,16758,124,"NOVELLINI",null,null,null,null,null,"Basses-Alpes (Alpes-de-Haute-Provence)","Digne (Digne-les-Bains)",null,null,"Fusillé"]
[162,2494,null,"BONNET","Gaston",null,"1897-04-24","Beaujeu",null,"Basses-Alpes (Alpes-de-Haute-Provence)","Beauvezer",null,null,"Exécuté","1944-07-18","1944-07-18","Beauvezer","Basses-Alpes (Alpes-de-Haute-Provence)","Exécuté en franchissant un barrage défendu par les Allemands à l'Alp-Hôtel de Beauvezer. Inhumé à Beauvezer","24/04/1897",{"$f":"MID(T162,7,4)","v":"1897"},{"$f":"MID(T162,4,2)","v":"04"},{"$f":"MID(T162,1,2)","v":"24"}]
[163,554,8,"ARNOUX","Félix Jean-Baptiste","Retraité","1883-02-13",null,null,"Basses-Alpes (Alpes-de-Haute-Provence)","Allemagne",null,"FTP","Fusillé","1944-06-16","1944-06-16","Allemagne (Allemagne-en-Provence)","Basses-Alpes (Alpes-de-Haute-Provence)","Fusillé sur la place publique d'Allemagne","13/02/1883",{"$f":"MID(T163,7,4)","v":"1883"},{"$f":"MID(T163,4,2)","v":"02"},{"$f":"MID(T163,1,2)","v":"13"}]
[164,16804,92,"PIERRE-ROSE","Gérard",null,"1913-01-26","Fort-de-France","Martinique","Var","Draguignan",null,"AS","Fusillé","1944-07-18","1944-07-18",null,null,"Chef du secteur n° 11, commandant le maquis Fort de France. Fusillé comme otage pendant les combats. Inhumé à Barrême","1913-01-26",1913,1,26]
[165,2657,22,"BOTTO","Eugène Émile Gaston",null,"1923-08-06","Vidauban","Var","Var","Carcès",null,"FTP","Fusillé","1944-06-16","1944-06-16","Saint-Martin-de-Brômes","Basses-Alpes (Alpes-de-Haute-Provence)","Fusillé après avoir été fait prisonnier sur la route de Riez à Allemagne","1923-08-06",1923,8,6]
[166,18245,null,"RICOLVI","Joseph","Cultivateur",null,null,null,"Var","Lorgues",null,"FTP","Fusillé","1944-06-11","1944-06-11","Mézel","Basses-Alpes (Alpes-de-Haute-Provence)","Fusillé sur les lieux de son arrestation au cour d'une mission à Mézel"]
[167,17138,90,"PASCAL","Marcel","Négociant","1912-11-04","Mane","Basses-Alpes (Alpes-de-Haute-Provence)","Basses-Alpes (Alpes-de-Haute-Provence)","Forcalquier",null,null,"Exécuté","1944-06-08","1944-06-08","Forcalquier","Basses-Alpes (Alpes-de-Haute-Provence)","Exécuté après avoir été surpris par les Allemands alors qu'il transportait du matériel et de l'armement dans sa camionnette","1912-11-04",1912,11,4]
[168,20000,115,"SZALA","Michel","Ouvrier mineur","1887-11-20","Bobska","Pologne","Basses-Alpes (Alpes-de-Haute-Provence)","Sigonce",null,"AS","Fusillé","1944-06-08","1944-06-08","Forcalquier","Basses-Alpes (Alpes-de-Haute-Provence)","Participa à l'occupation de Forcalquier ; les Allemands reprirent la ville et il fut fusillé","20/11/1887",{"$f":"MID(T168,7,4)","v":"1887"},{"$f":"MID(T168,4,2)","v":"11"},{"$f":"MID(T168,1,2)","v":"20"}]
[169,15793,86,"MILLE","Élie Joseph","Agriculteur","1911-10-22","Banon","Basses-Alpes (Alpes-de-Haute-Provence)","Basses-Alpes (Alpes-de-Haute-Provence)","Banon",null,null,"Fusillé","1944-01-24","1944-01-24","Banon","Basses-Alpes (Alpes-de-Haute-Provence)","Fusillé par les Allemands. Lors d'une perquisition à son domicile, découverte de matériel parachuté et récupéré, armes. Inhumé à Banon","1911-10-22",1911,10,22]
[170,18562,104,"ROMAN","Félix","Cultivateur","1923-01-21","Clumanc","Basses-Alpes (Alpes-de-Haute-Provence)","Basses-Alpes (Alpes-de-Haute-Provence)","Clumanc",null,"FTP","Tué","1944-01-21","1944-01-21","Barrême","Basses-Alpes (Alpes-de-Haute-Provence)","Chef de groupe de la 1ère compagnie FTP. Tué en mission à 4 km de Barrême","1923-01-21",1923,1,21]
[171,19444,123,"SEHENCK",null,null,null,null,null,"Basses-Alpes (Alpes-de-Haute-Provence)","Digne (Digne-les-Bains)",null,"FFI","Tué",null,null,null,"Basses-Alpes (Alpes-de-Haute-Provence)"]
[172,4409,36,"CHANA","Raymond Séférino","Cultivateur","1923-03-21","Port-de-Bouc","Bouches-du-Rhône","Basses-Alpes (Alpes-de-Haute-Provence)","Sigoyer",null,"FTP","Exécuté","1944-07-26","1944-07-26","Bayons","Basses-Alpes (Alpes-de-Haute-Provence)","Exécuté lors de l'attaque du camp de Bayons par les Allemands. Entrée dans la Résistance le 6 6 1944","1923-03-21",1923,3,21]
[173,5436,40,"COTTE","Émile","Chauffeur","1921-10-13","Puimoisson","Basses-Alpes (Alpes-de-Haute-Provence)","Basses-Alpes (Alpes-de-Haute-Provence)","Bras-d'Asse",null,"FTP","Fusillé","1944-06-11","1944-06-11","Mézel","Basses-Alpes (Alpes-de-Haute-Provence)","Fusillé sur les lieux de son arrestation lors d'une mission à Mézel. Groupe FTP de Bras-d'Asse","1921-10-13",1921,10,13]
[174,16839,125,"PIQUELAM",null,null,null,null,null,"Basses-Alpes (Alpes-de-Haute-Provence)","Manosque",null,"FFI","Fusillé",null,null,null,"Basses-Alpes (Alpes-de-Haute-Provence)"]
[175,3115,23,"BRACCO","Sébastien","Gendarme","1908-01-20","Beaulieu","Basses-Alpes (Alpes-de-Haute-Provence)","Basses-Alpes (Alpes-de-Haute-Provence)","Colmars",null,null,"Fusillé","1944-07-20","1944-07-20","Beauvezer","Basses-Alpes (Alpes-de-Haute-Provence)","Fusillé sans jugement après son arrestation ","1908-01-20",1908,1,20]
[176,19247,null,"SAUVAIRE","Marcel Batiste",null,"1907-05-20","Toulon","Var","Basses-Alpes (Alpes-de-Haute-Provence)","Castellane",null,"FFI","Mort des suites de ses blessures","1944-08-17","1944-08-17","Beauvezer","Basses-Alpes (Alpes-de-Haute-Provence)","Mortellement blessé en combattant pour la libération de Castellane. Inhumé à Castellane","1907-05-20",1907,5,20]
[177,19557,110,"SETTIMELLI","Lazare","Retraité","1888-11-03","Villefranche-sur-Mer","Alpes-Maritimes","Basses-Alpes (Alpes-de-Haute-Provence)","Estoublon",null,"FTP","Fusillé","1944-06-17","1944-06-17","Estoublon","Basses-Alpes (Alpes-de-Haute-Provence)","Chef FTP. A été un des premiers organisateur de la Résistance","03/11/1888",{"$f":"MID(T177,7,4)","v":"1888"},{"$f":"MID(T177,4,2)","v":"11"},{"$f":"MID(T177,1,2)","v":"03"}]
[178,19938,114,"SUBILIA","Ernest",null,"1924-07-08","Villa Perosa (Pinasca)","Italie","Alpes-Maritimes","Ciotat (La)",null,"FTP","Fusillé","1944-08-11","1944-08-11","Montagnac (Montagnac-Montpezat)","Basses-Alpes (Alpes-de-Haute-Provence)","Fusillé après avoir été fait prisonnier au cours de l'attaque du camp de Sainte-Croix","1924-07-08",1924,7,8]
[179,176620,98,"PUSTEL","Gilbert","Cultivateur","1918-03-15","Bayons","Basses-Alpes (Alpes-de-Haute-Provence)","Basses-Alpes (Alpes-de-Haute-Provence)","Bayons",null,"Civil","Exécuté","1944-07-26","1944-07-26","Bayons","Basses-Alpes (Alpes-de-Haute-Provence)","Exécuté par la milice Waffen SS. N'appartenait pas à la Résistance. Inhumé à Bayons","1918-03-15",1918,3,15]
[180,18819,"123*","ROUX",null,null,null,null,null,"Basses-Alpes (Alpes-de-Haute-Provence)","Clumanc",null,"FFI","Tué"]
[181,18744,null,"ROURE","Léon Louis",null,"1918-09-15","Marseille","Bouches-du-Rhône","Basses-Alpes (Alpes-de-Haute-Provence)","Valensole",null,"AS","Tué","1944-06-11","1944-06-11","Manosque","Basses-Alpes (Alpes-de-Haute-Provence)","Tué lors d'une fuite en camion avec son groupe non armé alors qu'il s'enfuyait à travers bois. Inhumé à Valensole","1918-09-15",1918,9,15]
[182,18717,124,"ROUGON","Aurelle",null,null,null,null,"Basses-Alpes (Alpes-de-Haute-Provence)","Seyne",null,"Civile","Tuée"]
[183,18191,"123*","RICHARD",null,null,null,null,null,"Basses-Alpes (Alpes-de-Haute-Provence)","Saint-Estève",null,"FFI","Tué"]
[184,11085,69,"ISAAC","Armand","Marchand de bestiaux","1898-07-06","Ferté-sous-Jouarre (La)","Seine-et-Marne","Seine-et-Marne","Ferté-sous-Jouarre (La)",null,"Juif","Fusillé","1944-07-22","1944-07-22","Clumanc","Basses-Alpes (Alpes-de-Haute-Provence)","Fusillé comme Juif","06/07/1898",{"$f":"MID(T184,7,4)","v":"1898"},{"$f":"MID(T184,4,2)","v":"07"},{"$f":"MID(T184,1,2)","v":"06"}]
[185,8613,53,"FUENTES","Floréal","Journalier agricole","1919-03-28","Saint-Julien-de-Montagnet","Var","Var","Carcès",null,"FTP","Fusillé","1944-08-11","1944-08-11","Sainte-Croix-du-Verdon","Basses-Alpes (Alpes-de-Haute-Provence)","Fusillé après avoir été fait prisonnier par les Allemands lors de l'attaque du camp de Sainte-Croix ; faisait partie de la 13e compagnie FTP, 2e groupe","1919-03-28",1919,3,28]
[186,3331,24,"BRON","Charles Émile",null,"1922-08-04","Tillot (Le)","Vosges","Basses-Alpes (Alpes-de-Haute-Provence)","Saint-André-les-Alpes",null,"FTP","Fusillé","1944-08-11","1944-08-11","Sainte-Croix-du-Verdon","Basses-Alpes (Alpes-de-Haute-Provence)","Fusillé après avoir été fait prisonnier par les Allemands lors de l'attaque du camp de Sainte-Croix. Expulsé de Lorraine - Faisait partie de la 13e compagnie FTP, 2e groupe","1922-08-04",1922,8,4]
[187,18826,106,"ROUX ","Arthur","Boulanger","1905-12-04","Thoard","Basses-Alpes (Alpes-de-Haute-Provence)","Basses-Alpes (Alpes-de-Haute-Provence)","Malijai",null,"Civil","Fusillé","1944-08-19","1944-08-19","Malijai","Basses-Alpes (Alpes-de-Haute-Provence)","Fusillé à son domicile après quelques heures de son arrestation. Pris à son domicile sans motif connu Inhumé à Malijai","1905-12-04",1905,12,4]
[188,310,125,"AMOUREUX",null,null,null,null,null,"Basses-Alpes (Alpes-de-Haute-Provence)","Noyers-sur- Jabron",null,"FFI","Fusillé"]
[189,7756,47,"FABIANO","Raphaël Lucien Jeannot","Journalier bûcheron","1927-11-28","Val (Le)","Var","Var","Val (Le)",null,"FTP","Fusillé","1944-06-16","1944-06-16","Saint-Martin-de-Brômes","Basses-Alpes (Alpes-de-Haute-Provence)","Fait prisonnier sur la route de Riez à Allemagne (Allemagne-en-Provence)","1927-11-28",1927,11,28]
[190,102,null,"AHAROMIAN","Roger",null,"1926-03-18",null,null,"Bouches-du-Rhône","Ciotat (La)","2 rue du Four",null,"Tué","1944-04-05","1944-04-05","Châteauredon","Basses-Alpes (Alpes-de-Haute-Provence)",null,"1926-03-18",1926,3,18]
[191,335,125,"ANDRÉ (voir GEORGES)"]
[192,620,1204,"AUBE",null,null,null,null,null,"Basses-Alpes (Alpes-de-Haute-Provence)","Sigonce",null,null,"Fusillé"]
[193,765,null,"AVIGNON","Paul Émile Jules",null,"1924-03-08","Thoard","Basses-Alpes (Alpes-de-Haute-Provence)","Basses-Alpes (Alpes-de-Haute-Provence)","Thoard",null,"FFI","Tué","1944-07-02","1944-07-02","Castellane","Basses-Alpes (Alpes-de-Haute-Provence)","Tué en mission dans la commune de Castellane. Volontaire de l'organisation de résistance du secteur de Thoard, Inhumé à Thoard","1924-03-08",1924,3,8]
[194,762,122,"AUZIAS","Henri",null,null,null,null,"Basses-Alpes (Alpes-de-Haute-Provence)","Villevieille (Val-de-Chalvagne)",null,null,"Fusillé"]
[195,55,9,"ARNOUX","Victor ","Capitaine du génie retraité","1889-03-11","Barrême","Basses-Alpes (Alpes-de-Haute-Provence)","Basses-Alpes (Alpes-de-Haute-Provence)","Mézel",null,"Conseiller technique","Fusillé","1944-07-18","1944-07-18","Norante (Chaudon-Norante)","Basses-Alpes (Alpes-de-Haute-Provence)","Conseiller technique de la résistance locale","11/03/1889",{"$f":"MID(T195,7,4)","v":"1889"},{"$f":"MID(T195,4,2)","v":"03"},{"$f":"MID(T195,1,2)","v":"11"}]
[196,14151,781,"LITTMANN ( voir LIPMANN)","Jean"]
[197,19171,107,"SAPPA","Alexandre Marius","Ouvrier agricole",null,"Saint-Anastasie (Sainte-Anastasie-sur-Issole)","Var","Var","Montfort-sur-Argent",null,"TFTP","Fusillé","1944-06-16","1944-06-16","Saint-Martin-de-Brômes","Basses-Alpes (Alpes-de-Haute-Provence)","Fait prisonnier sur la route de Riez à Allemagne (Allemagne-en-Provence)","1923-09-10",{"$f":"YEAR(T197)","v":1923},{"$f":"MONTH(T197)","v":9},{"$f":"DAY(T197)","v":10}]
[198,19717,"124*","SLOBODRIANSKI","Fraim",null,null,null,null,"Maroc",null,null,"Civil","Fusillé"]
[199,19182,"124*","SARIEGO",null,null,null,null,null,"Alpes-Maritimes","Saint-Auban",null,null,"Tué"]
[200,19667,null,"SIMON","Paul",null,"1897-06-08","Vergons ","Basses-Alpes (Alpes-de-Haute-Provence)","Basses-Alpes (Alpes-de-Haute-Provence)","Vergons",null,"Ravitaillement de réfractaires","Tué","1944-06-06","1944-06-06","Vergons","Basses-Alpes (Alpes-de-Haute-Provence)","Une opération de police ayant eu lieu à Vergons ; le susnommé voulant s'échapper a été abattu dans les champs ; inhumé à Vergons","08/06/1897",{"$f":"MID(T200,7,4)","v":"1897"},{"$f":"MID(T200,4,2)","v":"06"},{"$f":"MID(T200,1,2)","v":"08"}]
[201,621,10,"AUBE","Césaire Denis Antoine","Étudiant","1927-04-30","Menton",null,"Alpes-Maritimes","Nice","21 quai Lyautey",null,"Fusillé","1944-06-11","1944-06-11","Saint-Julien-du-Verdon","Basses-Alpes (Alpes-de-Haute-Provence)","Prisonnier aux \"Prisons nouvelles\" à Nice","1927-04-30",1927,4,30]
[202,9312,59,"GILLOUX","Paul","Cultivateur","1922-04-25","Croix-sur-Roudoule (La)","Alpes-Maritimes","Alpes-Maritimes","Croix-sur-Roudoule (La)",null,"FTP","Fusillé","1944-08-11","1944-08-11","Montagnac (Montagnac-Montpezat)","Basses-Alpes (Alpes-de-Haute-Provence)","Résistant ; 13e compagnie FTP, 2e groupe ; fait prisonnier au cours de l'attaque du camp de Sainte-Croix","1922-04-25",1922,4,25]
[203,9255,null,"GIBERT","Jean",null,"1900-06-27","Barcelone","Espagne","Basses-Alpes (Alpes-de-Haute-Provence)","Digne (Digne-les-Bains)","27 rue de la Grande-Fontaine","Civil","Tué","1944-07-24","1944-07-24",null,null,"Faisait partie d'un convoi de camions réquisitionnés par les Allemands ; Le convoi a été attaqué par un groupe de la Résistance. Inhumé à Digne","1900-06-27",1900,6,27]
[204,9158,null,"GEORGES","Lucien",null,"1924-05-16","Beaucaire","Gard","Bouches-du-Rhône","Saint-Rémy-de-Provence",null,"AS","Tué","1944-07-08","1944-07-08",null,null,"A été tué au cours d'une opération effectuée par les Allemands contre le camp ; Inhumé à Sigonce ; exhumé et transféré à Saint-Rémy-de-Provence","1924-05-16",1924,5,16]
[205,1713,89,"PASCAL",null,null,null,null,"Italie",null,null,null,"FTP","Fusillé","1944-07-30","1944-07-30",null,null,"Maquis de Rostagne. Nom de guerre ; patronyme inconnu. Fusillé au cours d'une opération de police allemande ; inhumé dans la commune de Prads ; le maire de cette commune n'a pu avoir aucun renseignement à son sujet."]
[206,2418,24,"BONDIL",null,null,null,null,null,null,null,null,null,"Tué","1944-02-26","1944-02-26","Saint-Jurs","Basses-Alpes (Alpes-de-Haute-Provence)","82 ans. Tué au cours d'une opération d'un détachement allemand "]
[207,3174,125,"BREAUD",null,null,null,null,null,"Basses-Alpes","Annot",null,null,"Fusillé"]
[208,15215,null,"MATTALIA","Laurent Spinitus",null,"1906-07-19","San Domiano Macea ","Italie","Basses-Alpes (Alpes-de-Haute-Provence)","Manosque","22 Bd Casimir-Pelloutier","FFI","Tué","1944-06-11","1944-06-11","Valensole","Basses-Alpes (Alpes-de-Haute-Provence)","Faisait partie d'un groupe se trouvant  à Valensole ; a été surpris par les Allemands et abattu ; inhumé à Manosque","1906-07-19",1906,7,19]
[209,14840,null,"MARINI","Dominique",null,"1924-12-21","Toulon","Var","Bouches-du-Rhône","Marseille","17 rue des Cordelles","FFI","Tué","1944-07-20","1944-07-20",null,null,"Tué au combat. Inhumé à Barrême","1924-12-21",1924,12,21]
[210,14462,80,"MAGNAN","Aimé","Cultivateur","1914-09-14","Puget-Théniers","Alpes-Maritimes","Alpes-Maritimes","Puget-Théniers",null,null,"Fusillé","1944-06-11","1944-06-11","Saint-Julien-du-Verdon","Basses-Alpes (Alpes-de-Haute-Provence)","Arrêté par les Allemands à Puget-Théniers ; conduit \"aux prisons nouvelles\" à Nice","1914-09-14",1914,9,14]
[211,16153,87,"MOREAU","Louis ","Ouvrier agricole","1910-01-19","Nice","Alpes-Maritimes",null,null,null,null,"Exécuté","1944-07-17","1944-07-17",null,null,"Aurait été accusé d'avoir effectué des transports d'armes pour le maquis ; a été tué d'une balle dans la nuque sans jugement ; Inhumé à Entrevaux","1910-01-19",1910,1,19]
[212,12253,null,"LAMBERT","Georges",null,"1923-11-02","Musson","Belgique","Basses-Alpes (Alpes-de-Haute-Provence)","Digne (Digne-les-Bains)","Bd Gambetta","AS","Tué","1944-08-19","1944-08-19","Entrages","Basses-Alpes (Alpes-de-Haute-Provence)","Demeurait chez M. Lamborelle à Digne. Agent de liaison du maquis Fort de France. Tué aux clues de Chabrières. Inhumé à Barrême","1923-11-02",1923,11,2]
[213,7905,125,"FAVIER",null,null,null,null,null,null,null,null,null,"Disparu",null,null,"Oraison","Basses-Alpes (Alpes-de-Haute-Provence)"]
[214,8267,51,"FORAY","Pierre","Garde domanial","1904-08-10","Riez (Alpes-de-Haute-Provence)","Basses-Alpes (Alpes-de-Haute-Provence)","Basses-Alpes (Alpes-de-Haute-Provence)","Estoublon",null,"FTP","Fusillé","1944-06-17","1944-06-17","Estoublon","Basses-Alpes (Alpes-de-Haute-Provence)","Chef de groupe FTP d'Estoublon. Fusillé comme otage","1904-08-10",1904,8,10]
[215,19628,191,"SIGNORET ","Léon","Cultivateur","1927-05-22","Condamine-Châtelard (La)","Basses-Alpes (Alpes-de-Haute-Provence)","Basses-Alpes (Alpes-de-Haute-Provence)","Condamine-Châtelard (La)",null,"Résistant","Fusillé","1944-06-16","1944-06-16",null,null,"inhumé à Barcelonnette ; Membre actif de la Résistance","1927-05-22",1927,5,22]
[216,19288,122,"SAVOURDIEU",null,null,null,null,null,"Basses-Alpes (Alpes-de-Haute-Provence)","Annot",null,"Civil","Fusillé"]
[217,19597,null,"SIBILLI","François Laurent",null,"1921-04-11",null,null,"Var","Saint-Tropez",null,"FFI","Tué","1944-08-17","1944-08-17","Castellane","Basses-Alpes (Alpes-de-Haute-Provence)","Lieu d'inhumation inconnu ; Tué au cours de la libération de Castellane","1921-04-11",1921,4,11]
[218,556,null,"ARNOUX","Jean Désiré",null,"1916-12-08","Saint-Jeannet","Basses-Alpes (Alpes-de-Haute-Provence)","Basses-Alpes (Alpes-de-Haute-Provence)","Saint-Jeannet",null,"FTP","Tué","1944-06-09","1944-06-09","Puimoisson","Basses-Alpes (Alpes-de-Haute-Provence)","FTP de Bras-d'Asse. Tué au cours de l'attaque du poste allemand de Puimoisson ; inhumé à Bras-d'Asse","1916-12-08",1916,12,8]
[219,8205,null,"FOGNINI","Marino",null,"1922-05-13","Moïo di Calvi","Italie","Basses-Alpes (Alpes-de-Haute-Provence)","Valensole","Hameau de Villedieu","AS","Tué","1944-06-11","1944-06-11",null,null,"Circulait en camion avec son groupe ; non armé sur la route de Valensole à Manosque ; surpris par les Allemands et tué alors qu'il tentait de se sauver ; inhumé à Valensole","1922-05-13",1922,5,13]
[220,6919,46,"DONNADIEU","Émile","Boucher","1909-08-17","Barcelonnette","Basses-Alpes (Alpes-de-Haute-Provence)","Basses-Alpes (Alpes-de-Haute-Provence)","Barcelonnette",null,"Résistant","Fusillé","1944-06-16","1944-06-16","Barcelonnette","Basses-Alpes (Alpes-de-Haute-Provence)","Arrêté et fusillé par les Allemands","1909-08-17",1909,8,17]
[221,6452,45,"DEMONCEAUX","Roger Louis","Étudiant","1926-04-28","Nice","Alpes-Maritimes","Alpes-Maritimes","Nice",null,null,"Fusillé","1944-06-11","1944-06-11","Saint-Julien-du-Verdon","Basses-Alpes (Alpes-de-Haute-Provence)","Interné \"aux prisons nouvelles\" à Nice","1926-04-28",1926,4,28]
[222,5966,43,"DAUMAS","Adrien Célestin Valentin","Gendarme","1918-07-06","Robion","Basses-Alpes (Alpes-de-Haute-Provence)","Basses-Alpes (Alpes-de-Haute-Provence)","Colmars",null,null,"Exécuté","1944-07-22","1944-07-22","Beauvezer","Basses-Alpes (Alpes-de-Haute-Provence)","Arrêté le 20/07/1944 et exécuté par les Allemands sans jugement.","1918-07-06",1918,7,6]
[223,24,122,"ABELLO","Antoine",null,null,null,null,"Basses-Alpes (Alpes-de-Haute-Provence)","Valensole",null,"Civil","Tué"]
[224,61,null,"ADAM","Alix",null,"1916-03-13","Montplonne","Meuse","Basses-Alpes (Alpes-de-Haute-Provence)","Valensole",null,"FTP","Tué","1944-06-17","1944-06-17",null,null,"Tué au combat. Inhumé à Valensole","1916-03-13",1916,3,13]
[225,89,124,"AGNEL",null,null,null,null,null,"Basses-Alpes (Alpes-de-Haute-Provence)","Oraison",null,null,"Fusillé"]
[226,3865,30,"CANTINI","Agio Digiovani",null,null,"Milan","Italie",null,null,null,"FTP","Fusillé","1944-06-16","1944-06-16","Saint-Martin-de-Brômes","Basses-Alpes (Alpes-de-Haute-Provence)","Né en 1922. Fait prisonnier sur la route de Riez à Allemagne (Allemagne-en-Provence)"]
[227,4096,32,"CASIMIRI","Léonce","Télégraphiste","1889-08-30","San-Guiliano","Corse (Haute-Corse)","Alpes-Maritimes","Puget-Theniers",null,null,"Fusillé","1944-06-11","1944-06-11","Saint-Julien-du-Verdon","Basses-Alpes (Alpes-de-Haute-Provence)","Interné \"aux prisons nouvelles\" à Nice","30/08/1889",{"$f":"MID(T227,7,4)","v":"1889"},{"$f":"MID(T227,4,2)","v":"08"},{"$f":"MID(T227,1,2)","v":"30"}]
[228,4061,null,"CARRODANO","Adrian",null,"1923-11-29",null,null,"Alpes-Maritimes","Ciotat (La)",null,null,"Fusillé","1944-04-05","1944-04-05","Châteauredon","Basses-Alpes (Alpes-de-Haute-Provence)",null,"1923-11-29",1923,11,29]
[229,4011,null,"CARRARA","Jean Emmanuel",null,"1924-12-09","Fréjus ","Var","Var","Fréjus",null,"Résistant","Tué","1944-03-27","1944-03-27","Valensole","Basses-Alpes (Alpes-de-Haute-Provence)","Tué au combat. Inhumé à Digne","1924-12-09",1924,12,9]
[230,4285,35,"CHABASSUT","Clément","Cultivateur","1911-08-02","Chénerilles (Malijai)","Basses-Alpes (Alpes-de-Haute-Provence)","Basses-Alpes (Alpes-de-Haute-Provence)","Sigonce",null,"AS","Fusillé","1944-06-08","1944-06-08","Forcalquier","Basses-Alpes (Alpes-de-Haute-Provence)","Participa à l'occupation de Forcalquier ; les Allemands reprirent la ville et il fut fusillé","1911-08-02",1911,8,2]
[231,4290,null,"CHABAUX","Adolphe",null,"1915-03-23","Sablon (Le) (Metz)","Moselle","Moselle","Metz","Sablon (Le)","FTP","Tué","1944-08-11","1944-08-11","Sainte-Croix-du-Verdon","Basses-Alpes (Alpes-de-Haute-Provence)","Tué par les Allemands au cours de l'attaque du camp de Sainte-Croix ;  inhumé à Riez sous le n° 13","1915-03-23",1915,3,23]
[232,5168,null,"COLLOMP","Jean Gabriel",null,"1925-07-02",null,null,null,null,null,"FTP","Mort des suites de ses blessures","1944-03-28","1944-03-28","Digne (Digne-les-Bains)","Basses-Alpes (Alpes-de-Haute-Provence)","Faisait partie de la 2e compagnie FTP de Provence ; a été blessé grièvement au cours d'un engagement contre les Allemands au quartier de Sionne, commune de Castellane ; transporté à l'hôpital de Digne où il décède.","1925-07-02",1925,7,2]
[233,3775,28,"CALVI ","Antoine","Agriculteur","1907-02-08","Valregra","Italie","Basses-Alpes (Alpes-de-Haute-Provence)","Allemagne (Allemagne-en-Provence)",null,"FTP","Fusillé ","1944-06-16","1944-06-16","Allemagne (Allemagne-en-Provence)","Basses-Alpes (Alpes-de-Haute-Provence)","Fusillé sur la place publique au cours d'une opération de police","1907-02-08",1907,2,8]
[234,3737,null,"CALANDRE","Joanny",null,null,"Larche (Val-d'Oronaye)","Basses-Alpes (Alpes-de-Haute-Provence)","Basses-Alpes (Alpes-de-Haute-Provence)","Larche (Val-d'Oronaye)",null,"Civil","Tué","1944-10-20","1944-10-20",null,null,"Né vers 1873. Resté à Larche lors de l'occupation par les troupes allemandes de cette dernière localité ; le 24/08/1944 a dû tenter de rejoindre la région libéré ;  inhumé à Jausiers"]
[235,3771,27,"CALVET","José",null,"1919-09-19","Lerida","Espagne","Vaucluse","Pertuis",null,"FTP","Fusillé","1944-08-11","1944-08-11",null,null,"Fait prisonnier au cours de l'attaque du camp de Sainte-Croix-du-Verdon","1919-09-19",1919,9,19]
[236,3777,123,"CALVI ","Émilie",null,null,null,null,null,null,null,"Civile","Tuée"]
[237,3755,122,"CALLIGARI",null,null,null,null,null,"Basses-Alpes (Alpes-de-Haute-Provence)","Puimoisson",null,"FFI","Tué"]
[238,677,11,"AUDIFFRED","Alfred","Cultivateur","1900-01-11","Saint-Paul (Saint-Paul-sur-Ubaye)","Basses-Alpes (Alpes-de-Haute-Provence)","Basses-Alpes (Alpes-de-Haute-Provence)","Saint-Paul (Saint-Paul-sur-Ubaye)",null,"FFI","Fusillé","1944-06-12","1944-06-12",null,null,"Né à Tournoux. N'a pas voulu révéler l'endroit où étaient entreposées les armes de la Résistance. Inhumé à Tournoux","1900-01-11",1900,1,11]
[239,245,124,"ALLESSANDRI","D",null,null,null,null,"Basses-Alpes (Alpes-de-Haute-Provence)","Annot",null,"Civil","Fusillé"]
[240,14466,81,"MAGNAN","Roger",null,"1923-05-03","Puget-Théniers","Alpes-Maritimes","Alpes-Maritimes","Puget-Théniers",null,null,"Fusillé","1944-06-11","1944-06-11","Saint-Julien-du-Verdon","Basses-Alpes (Alpes-de-Haute-Provence)","Arrêté par les Allemands à Puget-Théniers ; conduit \"aux prisons nouvelles\" à Nice","1923-05-03",1923,5,3]

{"sheet":"Feuil2","index":1,"n_rows":0,"n_cols":0,"rows_kept":0,"cut":false,"hidden":false,"merged":[]}

{"sheet":"Feuil3","index":2,"n_rows":0,"n_cols":0,"rows_kept":0,"cut":false,"hidden":false,"merged":[]}